fUSD/lending_fUSD_20241030
["ID","MTS","AMOUNT","RATE_DAILY","PERIOD"]
[341031244,1730287856202,-500.0,0.00034664,5]
[341031245,1730287856212,-1553.39,0.00034664,5]
[341031246,1730287856222,-500.0,0.00034664,5]
[341031247,1730287856235,-1848.28,0.00034664,5]
[341031248,1730287856244,-611.79,0.00034664,5]
[341031249,1730287856258,-3719.69,0.00034664,5]
[341031250,1730287856267,-677.95,0.00034664,5]
[341031251,1730287856277,-500.0,0.00034664,5]
[341031252,1730287856288,-500.0,0.00034664,5]
[341031253,1730287856298,-683.81,0.00034664,5]
[341031254,1730287856307,-612.99,0.00034664,5]
[341031255,1730287856318,-650.05,0.00034664,5]
[341031256,1730287856327,-500.0,0.00034664,5]
[341031257,1730287856337,-1371.89,0.00034664,5]
[341031258,1730287856347,-500.0,0.00034664,5]
[341031259,1730287856358,-810.88,0.00034664,5]
[341031260,1730287856368,-500.0,0.00034664,5]
[341031261,1730287856378,-700.2,0.00034664,5]
[341031262,1730287856387,-4336.64,0.00034664,5]
[341031263,1730287856396,-6659.79,0.00034664,5]
[341031264,1730287856406,-4383.56,0.00034664,5]
[341031265,1730287856415,-872.82,0.00034664,5]
[341031266,1730287856426,-500.0,0.00034664,5]
[341031267,1730287856435,-504.66,0.00034664,5]
[341031268,1730287856445,-1179.4,0.00034664,5]
[341031269,1730287856455,-8084.33,0.00034664,5]
[341031270,1730287856465,-500.0,0.00034664,5]
[341031271,1730287856475,-1163.92,0.00034664,5]
[341031272,1730287856485,-598.67599501,0.00034664,5]
[341031273,1730287856495,-500.0,0.00034665,5]
[341031274,1730287856505,-500.0,0.00034665,5]
[341031275,1730287856515,-500.0,0.00034665,5]
[341031276,1730287856527,-500.0,0.00034665,5]
[341031277,1730287856536,-500.0,0.00034665,5]
[341031278,1730287856546,-500.0,0.00034665,5]
[341031279,1730287856556,-606.85749866,0.00034665,5]
[341031280,1730287856566,-757.76,0.00034665,5]
[341031281,1730287856576,-500.0,0.00034665,5]
[341031282,1730287856585,-500.0,0.00034665,5]
[341031283,1730287856595,-500.0,0.00034665,5]
[341031284,1730287856605,-564.43,0.00034665,5]
[341031285,1730287856615,-500.0,0.00034665,5]
[341031286,1730287856625,-500.0,0.00034665,5]
[341031287,1730287856635,-500.0,0.00034665,5]
[341031288,1730287856644,-500.0,0.00034665,5]
[341031289,1730287856654,-500.0,0.00034665,5]
[341031290,1730287856664,-760.34,0.00034665,5]
[341031291,1730287856674,-500.0,0.00034665,5]
[341031292,1730287856683,-557.8,0.00034665,5]
[341031293,1730287856693,-500.0,0.00034665,5]
[341031294,1730287856703,-500.0,0.00034665,5]
[341031295,1730287856713,-500.0,0.00034665,5]
[341031296,1730287856723,-304.73845855,0.00034665,5]
[341031297,1730287856732,-500.0,0.00034665,5]
[341031298,1730287856742,-435.23515442,0.00034665,5]
[341031299,1730287856752,-513.58,0.00034665,5]
[341031300,1730287856761,-676.79,0.00034665,5]
[341031301,1730287856771,-500.0,0.00034665,5]
[341031302,1730287856781,-500.0,0.00034665,5]
[341031303,1730287856791,-500.0,0.00034665,5]
[341031304,1730287856801,-500.0,0.00034665,5]
[341031305,1730287856810,-500.0,0.00034665,5]
[341031306,1730287856821,-908.71,0.00034665,5]
[341031307,1730287856830,-500.0,0.00034665,5]
[341031308,1730287856840,-500.0,0.00034665,5]
[341031309,1730287856849,-500.0,0.00034665,5]
[341031310,1730287856859,-1060.03,0.00034665,5]
[341031311,1730287856868,-500.0,0.00034665,5]
[341031312,1730287856880,-1729.06,0.00034665,5]
[341031313,1730287856889,-500.0,0.00034665,5]
[341031314,1730287856898,-768.66,0.00034665,5]
[341031315,1730287856913,-500.0,0.00034665,5]
[341031316,1730287856922,-915.72,0.00034665,5]
[341031317,1730287856932,-150.0,0.00034665,5]
[341031318,1730287856941,-962.49,0.00034665,5]
[341031319,1730287856952,-500.0,0.00034665,5]
[341031320,1730287856961,-553.31,0.00034665,5]
[341031321,1730287856971,-500.0,0.00034665,5]
[341031322,1730287856980,-500.0,0.00034665,5]
[341031323,1730287856990,-500.0,0.00034665,5]
[341031324,1730287856999,-1177.05,0.00034665,5]
[341031325,1730287857008,-500.0,0.00034665,5]
[341031326,1730287857018,-500.0,0.00034665,5]
[341031327,1730287857027,-500.0,0.00034665,5]
[341031328,1730287857037,-500.0,0.00034665,5]
[341031329,1730287857046,-500.0,0.00034665,5]
[341031330,1730287857056,-500.0,0.00034665,5]
[341031331,1730287857065,-566.53,0.00034665,5]
[341031332,1730287857075,-678.67,0.00034665,5]
[341031333,1730287857084,-269.58168659,0.00034665,5]
[341031334,1730287857094,-500.0,0.00034665,5]
[341031335,1730287857103,-617.61,0.00034665,5]
[341031336,1730287857112,-500.0,0.00034665,5]
[341031337,1730287857121,-1539.9,0.00034665,5]
[341031338,1730287857130,-500.0,0.00034665,5]
[341031339,1730287857139,-561.44,0.00034665,5]
[341031340,1730287857149,-500.0,0.00034665,5]
[341031341,1730287857158,-500.0,0.00034665,5]
[341031342,1730287857167,-500.0,0.00034665,5]
[341031343,1730287857177,-549.24,0.00034665,5]
[341031344,1730287857186,-500.0,0.00034665,5]
[341031345,1730287857195,-500.0,0.00034665,5]
[341031346,1730287857205,-818.61,0.00034665,5]
[341031347,1730287857214,-500.0,0.00034665,5]
[341031348,1730287857224,-500.0,0.00034665,5]
[341031349,1730287857233,-500.0,0.00034665,5]
[341031350,1730287857243,-548.26,0.00034665,5]
[341031351,1730287857254,-500.0,0.00034665,5]
[341031352,1730287857264,-632.51,0.00034665,5]
[341031353,1730287857274,-2000.0,0.00034665,120]
[341031354,1730287857283,-551.42894408,0.00034665,5]
[341031355,1730287857294,-500.0,0.00034665,5]
[341031356,1730287857303,-1542.88,0.00034665,5]
[341031357,1730287857312,-1820.15,0.00034665,5]
[341031358,1730287857322,-560.75,0.00034665,5]
[341031359,1730287857333,-1983.08,0.00034665,5]
[341031360,1730287857343,-998.78,0.00034665,5]
[341031361,1730287857352,-500.0,0.00034665,5]
[341031362,1730287857362,-1054.61,0.00034665,5]
[341031363,1730287857372,-514.12,0.00034665,5]
[341031364,1730287857383,-500.0,0.00034665,5]
[341031365,1730287857393,-500.0,0.00034665,5]
[341031366,1730287857403,-500.0,0.00034665,5]
[341031367,1730287857413,-530.93,0.00034665,5]
[341031368,1730287857422,-500.0,0.00034665,5]
[341031369,1730287857432,-500.0,0.00034665,5]
[341031370,1730287857442,-500.0,0.00034665,5]
[341031371,1730287857451,-795.38,0.00034665,5]
[341031372,1730287857460,-152.269127,0.00034665,7]
[341031373,1730287857472,-500.0,0.00034665,5]
[341031374,1730287857482,-500.0,0.00034665,5]
[341031375,1730287857493,-152.269127,0.00034665,7]
[341031376,1730287857502,-500.0,0.00034665,5]
[341031377,1730287857511,-500.0,0.00034665,5]
[341031378,1730287857521,-500.0,0.00034665,5]
[341031379,1730287857532,-524.39383937,0.00034665,5]
[341031380,1730287857542,-500.0,0.00034665,5]
[341031381,1730287857551,-500.0,0.00034665,5]
[341031382,1730287857662,-911.41,0.00034665,5]
[341031383,1730287857679,-530.31040581,0.00034665,5]
[341031384,1730287857690,-2262.29,0.00034665,5]
[341031385,1730287857700,-931.91,0.00034665,5]
[341031386,1730287857709,-761.36,0.00034665,5]
[341031387,1730287857718,-500.0,0.00034665,5]
[341031388,1730287857728,-500.0,0.00034665,5]
[341031389,1730287857738,-1080.3,0.00034665,5]
[341031390,1730287857747,-1295.61,0.00034665,5]
[341031391,1730287857756,-500.0,0.00034665,5]
[341031392,1730287857766,-500.0,0.00034665,5]
[341031393,1730287857775,-567.69159838,0.00034665,5]
[341031394,1730287857785,-500.0,0.00034665,5]
[341031395,1730287857794,-1352.49,0.00034665,5]
[341031396,1730287857804,-500.0,0.00034665,5]
[341031397,1730287857813,-500.0,0.00034665,5]
[341031398,1730287857822,-500.0,0.00034665,5]
[341031399,1730287857832,-811.98,0.00034665,5]
[341031400,1730287857841,-500.0,0.00034665,5]
[341031401,1730287857850,-500.0,0.00034665,5]
[341031402,1730287857860,-1030.18,0.00034665,5]
[341031403,1730287857869,-903.51,0.00034665,5]
[341031404,1730287857879,-500.0,0.00034665,5]
[341031405,1730287857889,-500.0,0.00034665,5]
[341031406,1730287857898,-500.0,0.00034665,5]
[341031407,1730287857907,-573.58,0.00034665,5]
[341031408,1730287857917,-500.0,0.00034665,5]
[341031409,1730287857926,-679.11,0.00034665,5]
[341031410,1730287857935,-157.0,0.00034666,5]
[341031411,1730287857944,-615.87,0.00034666,5]
[341031412,1730287857955,-500.0,0.00034666,5]
[341031413,1730287857963,-500.0,0.00034666,5]
[341031414,1730287857972,-500.0,0.00034666,5]
[341031415,1730287857982,-500.0,0.00034666,5]
[341031416,1730287857991,-1411.46,0.00034666,5]
[341031417,1730287858000,-1100.18,0.00034666,5]
[341031418,1730287858010,-500.0,0.00034666,5]
[341031419,1730287858019,-500.0,0.00034666,5]
[341031420,1730287858029,-500.0,0.00034666,5]
[341031421,1730287858038,-500.0,0.00034666,5]
[341031422,1730287858048,-741.79,0.00034666,5]
[341031423,1730287858057,-612.84,0.00034666,5]
[341031424,1730287858067,-500.0,0.00034666,5]
[341031425,1730287858076,-500.0,0.00034666,5]
[341031426,1730287858086,-500.0,0.00034666,5]
[341031427,1730287858095,-500.0,0.00034666,5]
[341031428,1730287858104,-714.49,0.00034666,5]
[341031429,1730287858113,-500.0,0.00034666,5]
[341031430,1730287858122,-500.0,0.00034666,5]
[341031431,1730287858131,-200.0,0.00034666,5]
[341031432,1730287858141,-453.73333147,0.00034666,5]
[341031433,1730287858150,-500.0,0.00034666,5]
[341031434,1730287858160,-500.0,0.00034666,5]
[341031435,1730287858169,-500.0,0.00034666,5]
[341031436,1730287858178,-359.54747232,0.00034666,5]
[341031437,1730287858188,-500.0,0.00034666,5]
[341031438,1730287858197,-500.0,0.00034666,5]
[341031439,1730287858207,-500.0,0.00034666,5]
[341031440,1730287858217,-500.0,0.00034666,5]
[341031441,1730287858226,-423.58389876,0.00034666,5]
[341031442,1730287858236,-560.99,0.00034666,5]
[341031443,1730287858245,-500.0,0.00034666,5]
[341031444,1730287858258,-500.0,0.00034666,5]
[341031445,1730287858267,-500.0,0.00034666,5]
[341031446,1730287858276,-500.0,0.00034666,5]
[341031447,1730287858286,-315.20272,0.00034666,5]
[341031448,1730287858296,-500.0,0.00034666,5]
[341031449,1730287858305,-500.0,0.00034666,5]
[341031450,1730287858316,-500.0,0.00034666,5]
[341031451,1730287858326,-629.8,0.00034666,5]
[341031452,1730287858337,-500.0,0.00034666,5]
[341031453,1730287858347,-500.0,0.00034666,5]
[341031454,1730287858357,-550.23,0.00034666,5]
[341031455,1730287858368,-500.0,0.00034666,5]
[341031456,1730287858378,-500.0,0.00034666,5]
[341031457,1730287858389,-500.0,0.00034666,5]
[341031458,1730287858399,-629.07357427,0.00034666,5]
[341031459,1730287858409,-500.0,0.00034666,5]
[341031460,1730287858418,-500.0,0.00034666,5]
[341031461,1730287858428,-500.0,0.00034666,5]
[341031462,1730287858437,-293.5813844,0.00034666,5]
[341031463,1730287858447,-605.86,0.00034666,5]
[341031464,1730287858457,-500.0,0.00034666,5]
[341031465,1730287858466,-500.0,0.00034666,5]
[341031466,1730287858476,-151.0,0.00034666,7]
[341031467,1730287858486,-151.0,0.00034666,7]
[341031468,1730287858495,-500.0,0.00034666,5]
[341031469,1730287858505,-500.0,0.00034666,5]
[341031470,1730287858515,-500.0,0.00034666,5]
[341031471,1730287858524,-1050.21,0.00034666,5]
[341031472,1730287858534,-500.0,0.00034666,5]
[341031473,1730287858543,-500.0,0.00034666,5]
[341031474,1730287858553,-500.0,0.00034666,5]
[341031475,1730287858562,-500.0,0.00034666,5]
[341031476,1730287858572,-500.0,0.00034666,5]
[341031477,1730287858581,-500.00000001,0.00034666,5]
[341031478,1730287858590,-950.52,0.00034666,5]
[341031479,1730287858600,-500.0,0.00034666,5]
[341031480,1730287858609,-500.0,0.00034666,5]
[341031481,1730287858618,-567.55101665,0.00034666,5]
[341031482,1730287858628,-500.0,0.00034666,5]
[341031483,1730287858637,-500.0,0.00034666,5]
[341031484,1730287858646,-1116.19,0.00034666,5]
[341031485,1730287858656,-500.0,0.00034666,5]
[341031486,1730287858665,-500.0,0.00034666,5]
[341031487,1730287858674,-595.36284688,0.00034666,5]
[341031488,1730287858684,-500.0,0.00034666,5]
[341031489,1730287858693,-228.32170934,0.00034666,5]
[341031490,1730287858703,-500.0,0.00034666,5]
[341031491,1730287858712,-500.0,0.00034666,5]
[341031492,1730287858721,-1174.61,0.00034666,5]
[341031493,1730287858730,-375.77466964,0.00034666,5]
[341031494,1730287858739,-500.0,0.00034666,5]
[341031495,1730287858748,-500.0,0.00034666,5]
[341031496,1730287858758,-500.0,0.00034666,5]
[341031497,1730287858767,-500.0,0.00034666,5]
[341031498,1730287858777,-500.0,0.00034666,5]
[341031499,1730287858786,-472.98145517,0.00034666,5]
[341031500,1730287858795,-644.81829192,0.00034666,5]
[341031501,1730287858806,-500.0,0.00034666,5]
[341031502,1730287858815,-500.0,0.00034666,5]
[341031503,1730287858825,-500.0,0.00034666,5]
[341031504,1730287858835,-500.0,0.00034666,5]
[341031505,1730287858845,-500.0,0.00034666,5]
[341031506,1730287858855,-359.7661441,0.00034666,5]
[341031507,1730287858865,-500.0,0.00034666,5]
[341031508,1730287858876,-500.0,0.00034666,5]
[341031509,1730287858887,-500.0,0.00034666,5]
[341031510,1730287858898,-500.0,0.00034666,5]
[341031511,1730287858908,-555.88615607,0.00034666,5]
[341031512,1730287858918,-359.32812119,0.00034666,5]
[341031513,1730287858928,-500.0,0.00034666,5]
[341031514,1730287858938,-862.57,0.00034666,5]
[341031515,1730287858949,-777.97,0.00034666,5]
[341031516,1730287858958,-1748.92,0.00034666,5]
[341031517,1730287858967,-500.0,0.00034666,5]
[341031518,1730287858978,-1344.36,0.00034666,5]
[341031519,1730287858988,-500.0,0.00034666,5]
[341031520,1730287858997,-1589.7,0.00034666,5]
[341031521,1730287859008,-500.0,0.00034666,5]
[341031522,1730287859018,-500.0,0.00034666,5]
[341031523,1730287859030,-527.87278263,0.00034666,5]
[341031524,1730287859040,-500.0,0.00034666,5]
[341031525,1730287859050,-658.36,0.00034666,5]
[341031526,1730287859059,-500.0,0.00034666,5]
[341031527,1730287859069,-500.0,0.00034666,5]
[341031528,1730287859079,-500.0,0.00034666,5]
[341031529,1730287859089,-500.0,0.00034666,5]
[341031530,1730287859098,-500.0,0.00034666,5]
[341031531,1730287859108,-1302.57,0.00034666,5]
[341031532,1730287859117,-884.45,0.00034666,5]
[341031533,1730287859126,-500.0,0.00034666,5]
[341031534,1730287859135,-500.0,0.00034666,5]
[341031535,1730287859145,-276.33003615,0.00034666,5]
[341031536,1730287859154,-500.0,0.00034666,5]
[341031537,1730287859164,-500.0,0.00034666,5]
[341031538,1730287859173,-500.0,0.00034666,5]
[341031539,1730287859182,-500.0,0.00034666,5]
[341031540,1730287859191,-500.0,0.00034666,5]
[341031541,1730287859202,-587.0050056,0.00034666,5]
[341031542,1730287859212,-500.0,0.00034666,5]
[341031543,1730287859221,-500.0,0.00034666,5]
[341031544,1730287859230,-500.0,0.00034666,5]
[341031545,1730287859239,-500.0,0.00034666,5]
[341031546,1730287859248,-531.38218502,0.00034666,5]
[341031547,1730287859262,-500.0,0.00034666,5]
[341031548,1730287859271,-500.0,0.00034666,5]
[341031549,1730287859280,-2212.61,0.00034666,5]
[341031550,1730287859290,-500.0,0.00034666,5]
[341031551,1730287859299,-500.0,0.00034666,5]
[341031552,1730287859309,-500.0,0.00034666,5]
[341031553,1730287859318,-500.0,0.00034666,5]
[341031554,1730287859329,-500.0,0.00034666,5]
[341031555,1730287859339,-588.43,0.00034666,5]
[341031556,1730287859348,-500.0,0.00034666,5]
[341031557,1730287859358,-500.0,0.00034666,5]
[341031558,1730287859367,-1000.0,0.00034666,5]
[341031559,1730287859376,-500.0,0.00034666,5]
[341031560,1730287859386,-500.0,0.00034666,5]
[341031561,1730287859395,-500.0,0.00034666,5]
[341031562,1730287859404,-574.51,0.00034666,5]
[341031563,1730287859414,-500.0,0.00034666,5]
[341031564,1730287859423,-500.0,0.00034666,5]
[341031565,1730287859433,-500.0,0.00034666,5]
[341031566,1730287859442,-500.0,0.00034666,5]
[341031567,1730287859453,-500.0,0.00034666,5]
[341031568,1730287859468,-500.0,0.00034666,5]
[341031569,1730287859477,-500.0,0.00034666,5]
[341031570,1730287859487,-1000.0,0.00034666,10]
[341031571,1730287859496,-985.37,0.00034666,5]
[341031572,1730287859506,-500.0,0.00034666,5]
[341031573,1730287859515,-500.0,0.00034666,5]
[341031574,1730287859524,-1061.29,0.00034666,5]
[341031575,1730287859534,-500.0,0.00034666,5]
[341031576,1730287859543,-500.0,0.00034666,5]
[341031577,1730287859552,-500.0,0.00034666,5]
[341031578,1730287859562,-500.0,0.00034666,5]
[341031579,1730287859572,-542.95723702,0.00034666,5]
[341031580,1730287859582,-500.0,0.00034666,5]
[341031581,1730287859592,-500.0,0.00034666,5]
[341031582,1730287859602,-486.82129151,0.00034666,5]
[341031583,1730287859611,-500.0,0.00034666,5]
[341031584,1730287859620,-500.0,0.00034666,5]
[341031585,1730287859630,-500.0,0.00034666,5]
[341031586,1730287859640,-500.0,0.00034666,5]
[341031587,1730287859650,-253.9113156,0.00034666,5]
[341031588,1730287859659,-500.0,0.00034666,5]
[341031589,1730287859669,-441.42515474,0.00034666,5]
[341031590,1730287859679,-500.0,0.00034666,5]
[341031591,1730287859689,-500.0,0.00034666,5]
[341031592,1730287859700,-2000.0,0.00034666,5]
[341031593,1730287859709,-500.0,0.00034666,5]
[341031594,1730287859718,-500.0,0.00034666,5]
[341031595,1730287859727,-500.0,0.00034666,5]
[341031596,1730287859736,-500.0,0.00034666,5]
[341031597,1730287859746,-797.09,0.00034666,5]
[341031598,1730287859859,-500.0,0.00034666,5]
[341031599,1730287859870,-623.22859275,0.00034666,5]
[341031600,1730287859880,-500.0,0.00034666,5]
[341031601,1730287859891,-500.0,0.00034666,5]
[341031602,1730287859901,-500.0,0.00034666,5]
[341031603,1730287859911,-500.0,0.00034666,5]
[341031604,1730287859921,-500.0,0.00034666,5]
[341031605,1730287859931,-500.0,0.00034666,5]
[341031606,1730287859941,-500.0,0.00034666,5]
[341031607,1730287859952,-500.0,0.00034666,5]
[341031608,1730287859962,-494.30334813,0.00034666,5]
[341031609,1730287859971,-500.0,0.00034666,5]
[341031610,1730287859980,-1532.21,0.00034666,5]
[341031611,1730287859989,-500.0,0.00034666,5]
[341031612,1730287859998,-500.0,0.00034666,5]
[341031613,1730287860007,-500.0,0.00034666,5]
[341031614,1730287860017,-631.76628444,0.00034666,5]
[341031615,1730287860026,-3567.53,0.00034666,5]
[341031616,1730287860035,-500.0,0.00034666,5]
[341031617,1730287860045,-500.0,0.00034666,5]
[341031618,1730287860054,-500.0,0.00034666,5]
[341031619,1730287860064,-500.0,0.00034666,5]
[341031620,1730287860074,-500.0,0.00034666,5]
[341031621,1730287860084,-500.0,0.00034666,5]
[341031622,1730287860094,-530.77239415,0.00034666,5]
[341031623,1730287860103,-500.0,0.00034666,5]
[341031624,1730287860113,-516.21,0.00034666,5]
[341031625,1730287860122,-500.0,0.00034666,5]
[341031626,1730287860131,-500.0,0.00034666,5]
[341031627,1730287860140,-272.239621,0.00034666,5]
[341031628,1730287860150,-500.0,0.00034666,5]
[341031629,1730287860159,-583.17,0.00034666,5]
[341031630,1730287860168,-500.0,0.00034666,5]
[341031631,1730287860178,-506.88389752,0.00034666,5]
[341031632,1730287860187,-500.0,0.00034666,5]
[341031633,1730287860196,-500.0,0.00034666,5]
[341031634,1730287860207,-500.0,0.00034666,5]
[341031635,1730287860216,-500.0,0.00034666,5]
[341031636,1730287860226,-500.0,0.00034666,5]
[341031637,1730287860235,-500.0,0.00034666,7]
[341031638,1730287860244,-1006.59,0.00034666,5]
[341031639,1730287860256,-207.25521391,0.00034666,5]
[341031640,1730287860267,-500.0,0.00034666,5]
[341031641,1730287860276,-500.0,0.00034666,5]
[341031642,1730287860285,-500.0,0.00034666,5]
[341031643,1730287860294,-500.0,0.00034666,5]
[341031644,1730287860303,-500.0,0.00034666,5]
[341031645,1730287860312,-314.77997582,0.00034666,5]
[341031646,1730287860321,-1027.25,0.00034666,5]
[341031647,1730287860331,-1122.81,0.00034666,5]
[341031648,1730287860340,-500.0,0.00034666,5]
[341031649,1730287860349,-500.0,0.00034666,5]
[341031650,1730287860358,-500.0,0.00034666,5]
[341031651,1730287860367,-500.0,0.00034666,5]
[341031652,1730287860379,-500.0,0.00034666,5]
[341031653,1730287860390,-752.68,0.00034666,5]
[341031654,1730287860401,-500.0,0.00034666,5]
[341031655,1730287860412,-691.52,0.00034666,5]
[341031656,1730287860422,-500.0,0.00034666,5]
[341031657,1730287860434,-1698.81,0.00034666,5]
[341031658,1730287860447,-500.0,0.00034666,5]
[341031659,1730287860457,-152.269127,0.00034666,7]
[341031660,1730287860469,-500.0,0.00034666,5]
[341031661,1730287860478,-769.39,0.00034666,5]
[341031662,1730287860488,-2556.13,0.00034666,5]
[341031663,1730287860497,-152.269127,0.00034666,7]
[341031664,1730287860507,-152.269127,0.00034666,7]
[341031665,1730287860516,-152.269127,0.00034666,7]
[341031666,1730287860525,-500.0,0.00034666,5]
[341031667,1730287860535,-2886.2,0.00034666,5]
[341031668,1730287860544,-500.0,0.00034666,5]
[341031669,1730287860553,-1028.94,0.00034666,5]
[341031670,1730287860563,-526.8566949,0.00034666,5]
[341031671,1730287860572,-1236.5,0.00034666,5]
[341031672,1730287860582,-500.0,0.00034666,5]
[341031673,1730287860591,-500.0,0.00034666,5]
[341031674,1730287860600,-500.0,0.00034666,5]
[341031675,1730287860610,-500.0,0.00034666,5]
[341031676,1730287860619,-1206.14,0.00034666,5]
[341031677,1730287860629,-500.0,0.00034666,5]
[341031678,1730287860639,-500.0,0.00034666,5]
[341031679,1730287860648,-500.0,0.00034666,5]
[341031680,1730287860657,-500.0,0.00034666,5]
[341031681,1730287860667,-523.75150062,0.00034666,5]
[341031682,1730287860676,-1267.5,0.00034666,5]
[341031683,1730287860685,-417.50234176,0.00034666,5]
[341031684,1730287860697,-512.51700846,0.00034666,5]
[341031685,1730287860707,-500.0,0.00034666,5]
[341031686,1730287860717,-500.0,0.00034666,5]
[341031687,1730287860725,-1728.05,0.00034666,5]
[341031688,1730287860735,-1331.93,0.00034666,5]
[341031689,1730287860744,-500.0,0.00034666,5]
[341031690,1730287860753,-500.0,0.00034666,5]
[341031691,1730287860762,-537.00583856,0.00034666,5]
[341031692,1730287860771,-500.0,0.00034666,5]
[341031693,1730287860780,-2000.0,0.00034666,5]
[341031694,1730287860789,-500.0,0.00034666,5]
[341031695,1730287860799,-979.39,0.00034666,5]
[341031696,1730287860808,-500.0,0.00034666,5]
[341031697,1730287860818,-500.0,0.00034666,5]
[341031698,1730287860827,-500.0,0.00034666,5]
[341031699,1730287860836,-500.0,0.00034666,5]
[341031700,1730287860846,-500.0,0.00034666,5]
[341031701,1730287860855,-500.0,0.00034666,5]
[341031702,1730287860864,-500.0,0.00034666,5]
[341031703,1730287860875,-500.0,0.00034666,5]
[341031704,1730287860885,-500.0,0.00034666,5]
[341031705,1730287860895,-500.0,0.00034666,5]
[341031706,1730287860906,-500.0,0.00034666,5]
[341031707,1730287860916,-500.0,0.00034666,5]
[341031708,1730287860926,-500.0,0.00034666,5]
[341031709,1730287860935,-500.0,0.00034666,5]
[341031710,1730287860946,-529.21923627,0.00034666,5]
[341031711,1730287860957,-512.37076672,0.00034666,5]
[341031712,1730287860966,-244.81620312,0.00034666,5]
[341031713,1730287860975,-500.0,0.00034666,5]
[341031714,1730287860984,-500.0,0.00034667,5]
[341031715,1730287860993,-500.0,0.00034667,5]
[341031716,1730287861003,-500.0,0.00034667,5]
[341031717,1730287861013,-500.0,0.00034667,5]
[341031718,1730287861023,-302.46268621,0.00034667,5]
[341031719,1730287861033,-527.04674449,0.00034667,5]
[341031720,1730287861042,-500.0,0.00034667,5]
[341031721,1730287861052,-307.49231388,0.00034667,5]
[341031722,1730287861062,-500.0,0.00034667,5]
[341031723,1730287861072,-500.0,0.00034667,5]
[341031724,1730287861081,-500.0,0.00034667,5]
[341031725,1730287861091,-500.0,0.00034667,5]
[341031726,1730287861101,-500.0,0.00034667,5]
[341031727,1730287861110,-546.7,0.00034667,5]
[341031728,1730287861119,-500.0,0.00034667,5]
[341031729,1730287861129,-500.0,0.00034667,5]
[341031730,1730287861138,-500.0,0.00034667,5]
[341031731,1730287861147,-500.0,0.00034667,5]
[341031732,1730287861156,-500.0,0.00034667,5]
[341031733,1730287861167,-500.0,0.00034667,5]
[341031734,1730287861177,-500.0,0.00034667,5]
[341031735,1730287861186,-500.0,0.00034667,5]
[341031736,1730287861195,-300.0,0.00034667,5]
[341031737,1730287861206,-500.0,0.00034667,5]
[341031738,1730287861215,-500.0,0.00034667,5]
[341031739,1730287861225,-500.0,0.00034667,5]
[341031740,1730287861235,-500.0,0.00034667,5]
[341031741,1730287861244,-551.1912697,0.00034667,5]
[341031742,1730287861258,-500.0,0.00034667,5]
[341031743,1730287861267,-500.0,0.00034667,5]